[Event "Hans Wild Turnier 2019"]
[Site "Bremen"]
[Date "2019.09.15"]
[Round "4.1"]
[White "Fruebing, Stefan"]
[Black "Breutigam, Martin"]
[Result "1-0"]
[ECO "C24"]
[WhiteElo "2410"]
[BlackElo "2383"]
[Annotator "ChessBase"]
[PlyCount "45"]
[EventDate "2019.09.13"]
[EventType "tourn"]
[EventCountry "GER"]
[SourceTitle "playchess.com"]
[Source "ChessBase"]
[SourceQuality "1"]
[TimeControl "40/7200:1800"]

1. e4 {[%emt 0:00:02]} e5 {[%emt 0:00:08]} 2. Nf3 {[%emt 0:00:06]} Nc6 {[%emt 0:00:06]} 3. Bc4 {[%emt 0:00:10]} Nf6 {[%emt 0:00:08]} 4. d3 {[%emt 0:00:16]} d5 {[%emt 0:02:09]} 5. exd5 {[%emt 0:00:21]} Nxd5 {[%emt 0:00:07]} 6. O-O {[%emt 0:01:07]} Bc5 {[%emt 0:03:13]} 7. Re1 {[%emt 0:05:27]} O-O {[%emt 0:00:57]} 8. Nbd2 {[%emt 0:01:04]} Nb6 {[%emt 0:01:53]} 9. Bb3 {[%emt 0:10:54]} a5 {[%emt 0:02:34]} 10. a4 {[%emt 0:02:40]} Bg4 {[%emt 0:03:39]} 11. h3 {[%emt 0:02:36]} Bh5 {[%emt 0:00:12]} 12. c3 {[%emt 0:10:30]} Qxd3 {[%emt 0:08:24]} 13. Nxe5 {[%emt 0:00:06]} Qg3 {[%emt 0:01:49]} 14. Qxh5 {[%emt 0:07:45]} Bxf2+ {[%emt 0:42:55]} 15. Kh1 {[%emt 0:00:27]} Bxe1 {[%emt 0:00:25]} 16. Nxf7 {[%emt 0:07:04]} Rxf7 {[%emt 0:02:45]} 17. Qxf7+ {[%emt 0:02:21]} Kh8 {[%emt 0:00:05]} 18. Nf3 {[%emt 0:07:34]} Ne5 {[%emt 0:08:07]} 19. Nxe5 {[%emt 0:01:44]} Qxe5 {[%emt 0:00:05]} 20. Bf4 {[%emt 0:00:54]} Qe2 {[%emt 0:01:07]} 21. Bxc7 {[%emt 0:01:13]} Nd7 {[%emt 0:01:14]} 22. Qxd7 {[%emt 0:02:24]} Rf8 {[%emt 0:00:17]} 23. Kh2 {[%emt 0:02:04]} 1-0

[Event "Hans Wild Turnier 2019"]
[Site "Bremen"]
[Date "2019.09.15"]
[Round "4.2"]
[White "Grigorian, Spartak"]
[Black "Bruedigam, Martin"]
[Result "1/2-1/2"]
[ECO "D38"]
[WhiteElo "2373"]
[BlackElo "2396"]
[Annotator "NA"]
[PlyCount "73"]
[EventDate "2019.09.13"]
[EventType "tourn"]
[EventCountry "GER"]
[SourceTitle "playchess.com"]
[Source "ChessBase"]
[SourceQuality "1"]
[TimeControl "40/7200:1800"]

1. Nf3 {[%emt 0:00:13]} d5 {[%emt 0:08:14]} 2. d4 {[%emt 0:00:38]} Nf6 {[%emt 0:00:15]} 3. c4 {[%emt 0:00:23]} e6 {[%emt 0:00:03]} 4. Nc3 {[%emt 0:00:14]} Bb4 {[%emt 0:03:30]} 5. Bg5 {[%emt 0:07:23]} h6 {[%emt 0:01:05]} 6. Bxf6 {[%emt 0:00:08]} Qxf6 {[%emt 0:00:07]} 7. e3 {[%emt 0:00:05]} O-O {[%emt 0:04:13]} 8. Rc1 {[%emt 0:00:03]} c6 {[%emt 0:04:38]} 9. Be2 {[%emt 0:09:55]} Nd7 {[%emt 0:02:43]} 10. O-O {[%emt 0:08:37]} Rd8 {[%emt 0:03:38]} 11. a3 {[%emt 0:06:45]} Bf8 {[%emt 0:15:42]} 12. Qc2 {[%emt 0:04:08]} dxc4 {[%emt 0:08:09]} 13. Bxc4 {[%emt 0:02:12]} Qe7 {[%emt 0:10:15]} 14. Ba2 {[%emt 0:05:12]} b6 {[%emt 0:02:34]} 15. h4 {[%emt 0:19:48]} g6 {[%emt 0:09:11]} 16. h5 {[%emt 0:07:06]} gxh5 {[%emt 0:00:28]} 17. Rfd1 {[%emt 0:05:25]} Bg7 {[%emt 0:01:20]} 18. e4 {[%emt 0:10:46]} c5 {[%emt 0:05:11]} 19. d5 {[%emt 0:02:31]} Ne5 {[%emt 0:13:31]} 20. Qe2 {[%emt 0:03:28]} Ng6 {[%emt 0:03:24]} 21. Qe3 {[%emt 0:00:50]} exd5 {[%emt 0:02:03]} 22. Nxd5 {[%emt 0:00:36]} Qf8 {[%emt 0:00:18]} 23. b4 {[%emt 0:00:43]} Bg4 {[%emt 0:02:21]} 24. bxc5 {[%emt 0:03:17]} bxc5 {[%emt 0:00:06]} 25. Rxc5 {[%emt 0:02:43]} Kh8 {[%emt 0:02:52]} 26. Rdc1 {[%emt 0:01:21]} Rd7 {[%emt 0:02:51]} 27. Rc7 {[%emt 0:01:31]} Rad8 {[%emt 0:03:20]} 28. Qxa7 {[%emt 0:02:08]} Bb2 {[%emt 0:00:22]} 29. Rxd7 {[%emt 0:01:29]} Rxd7 {[%emt 0:00:08]} 30. Rc7 {[%emt 0:00:11]} Rxc7 {[%emt 0:00:34]} 31. Nxc7 {[%emt 0:03:20]} Bxf3 {[%emt 0:02:44]} 32. gxf3 {[%emt 0:00:02]} Nh4 {[%emt 0:01:24]} 33. Qa8 {[%emt 0:01:15]} Qxa8 {[%emt 0:00:46]} 34. Nxa8 {[%emt 0:00:01]} Bxa3 {[%emt 0:00:17]} 35. Bxf7 {[%emt 0:00:21]} Nxf3+ {[%emt 0:00:06]} 36. Kg2 {[%emt 0:00:20]} Ng5 {[%emt 0:00:04]} 37. Bxh5 {[%emt 0:02:16]} 1/2-1/2

[Event "Hans Wild Turnier 2019"]
[Site "Bremen"]
[Date "2019.09.15"]
[Round "4.3"]
[White "Kunin, Vitaly"]
[Black "Reuker, Jari"]
[Result "1-0"]
[ECO "A72"]
[WhiteElo "2546"]
[BlackElo "2397"]
[Annotator "ChessBase"]
[PlyCount "116"]
[EventDate "2019.09.13"]
[EventType "tourn"]
[EventCountry "GER"]
[SourceTitle "playchess.com"]
[Source "ChessBase"]
[SourceQuality "1"]
[TimeControl "40/7200:1800"]

1. d4 {[%emt 0:02:42]} Nf6 {[%emt 0:09:41]} 2. c4 {[%emt 0:00:53]} g6 {[%emt 0:00:18]} 3. Nc3 {[%emt 0:00:15]} Bg7 {[%emt 0:00:05]} 4. e4 {[%emt 0:00:16]} d6 {[%emt 0:00:08]} 5. Be2 {[%emt 0:01:54]} O-O {[%emt 0:00:16]} 6. Bg5 {[%emt 0:00:07]} c5 {[%emt 0:00:19]} 7. d5 {[%emt 0:00:38]} e6 {[%emt 0:00:27]} 8. Nf3 {[%emt 0:01:08]} exd5 {[%emt 0:00:13]} 9. cxd5 {[%emt 0:02:38]} h6 {[%emt 0:00:30]} 10. Bf4 {[%emt 0:03:48]} g5 {[%emt 0:00:33]} 11. Be3 {[%emt 0:03:52]} Ng4 {[%emt 0:00:13]} 12. Bd2 {[%emt 0:00:37]} f5 {[%emt 0:00:48]} 13. h3 {[%emt 0:01:43]} Nf6 {[%emt 0:51:08]} 14. exf5 {[%emt 0:01:36]} Bxf5 {[%emt 0:00:29]} 15. O-O {[%emt 0:01:32]} Nbd7 {[%emt 0:01:45]} 16. Be3 {[%emt 0:01:23]} Ne4 {[%emt 0:05:27]} 17. Nxe4 {[%emt 0:04:21]} Bxe4 {[%emt 0:00:04]} 18. Nd2 {[%emt 0:00:52]} Bxd5 {[%emt 0:06:09]} 19. Bc4 {[%emt 0:00:22]} Bxc4 {[%emt 0:01:59]} 20. Nxc4 {[%emt 0:00:48]} Qf6 {[%emt 0:13:50]} 21. Nxd6 {[%emt 0:01:33]} b6 {[%emt 0:02:07]} 22. Qd5+ {[%emt 0:01:47]} Kh7 {[%emt 0:03:01]} 23. Rad1 {[%emt 0:01:15]} Qg6 {[%emt 0:01:11]} 24. Rfe1 {[%emt 0:03:36]} Nf6 {[%emt 0:02:15]} 25. Qb7 {[%emt 0:02:43]} Rfb8 {[%emt 0:06:35]} 26. Qf3 {[%emt 0:10:02]} Rf8 {[%emt 0:00:06]} 27. g4 {[%emt 0:01:23]} Nd7 {[%emt 0:03:01]} 28. Nf5 {[%emt 0:02:40]} Ne5 {[%emt 0:00:03]} 29. Qg2 {[%emt 0:05:52]} Rad8 {[%emt 0:00:08]} 30. b3 {[%emt 0:04:03]} Qc6 {[%emt 0:01:44]} 31. Qxc6 {[%emt 0:00:43]} Nxc6 {[%emt 0:00:01]} 32. Kg2 {[%emt 0:00:13]} Bc3 {[%emt 0:00:31]} 33. Rh1 {[%emt 0:01:58]} Kg6 {[%emt 0:01:34]} 34. h4 {[%emt 0:02:09]} h5 {[%emt 0:01:27]} 35. hxg5 {[%emt 0:04:12]} hxg4 {[%emt 0:00:04]} 36. Nh4+ {[%emt 0:01:44]} Kf7 {[%emt 0:00:01]} 37. Kg3 {[%emt 0:00:51]} Ne5 {[%emt 0:00:08]} 38. Rxd8 {[%emt 0:06:51]} Rxd8 {[%emt 0:00:01]} 39. Nf5 {[%emt 0:00:15]} Bd4 {[%emt 0:01:23]} 40. Rh6 {[%emt 0:05:27]} Bxe3 {[%emt 0:00:11]} 41. Rf6+ {[%emt 0:30:16]} Kg8 {[%emt 0:01:53]} 42. Nxe3 {[%emt 0:00:00]} Rd2 {[%emt 0:09:38]} 43. Nxg4 {[%emt 0:00:00]} Nxg4 {[%emt 0:06:27]} 44. Kxg4 {[%emt 0:00:00]} Rxa2 {[%emt 0:00:36]} 45. f4 {[%emt 0:00:00]} b5 {[%emt 0:06:19]} 46. Rc6 {[%emt 0:00:00]} c4 {[%emt 0:00:43]} 47. bxc4 {[%emt 0:00:00]} b4 {[%emt 0:00:04]} 48. f5 {[%emt 0:00:00]} b3 {[%emt 0:02:18]} 49. Rc8+ {[%emt 0:00:00]} Kf7 {[%emt 0:00:04]} 50. Rc7+ {[%emt 0:00:00]} Kf8 {[%emt 0:00:06]} 51. Rb7 {[%emt 0:00:00]} b2 {[%emt 0:00:41]} 52. g6 {[%emt 0:00:00]} Ra4 {[%emt 0:00:44]} 53. Rxb2 {[%emt 0:00:00]} Rxc4+ {[%emt 0:00:00]} 54. Kg5 {[%emt 0:00:00]} Rc1 {[%emt 0:00:25]} 55. Rb8+ {[%emt 0:00:00]} Ke7 {[%emt 0:00:00]} 56. Rb7+ {[%emt 0:00:00]} Kd6 {[%emt 0:00:00]} 57. Rxa7 {[%emt 0:00:00]} Ke5 {[%emt 0:00:00]} 58. Re7+ {[%emt 0:00:00]} Kd5 {[%emt 0:00:08]} 1-0

[Event "Hans Wild Turnier 2019"]
[Site "Bremen"]
[Date "2019.09.15"]
[Round "5.1"]
[White "Reuker, Jari"]
[Black "Fruebing, Stefan"]
[Result "1/2-1/2"]
[ECO "C67"]
[WhiteElo "2397"]
[BlackElo "2410"]
[Annotator "NA"]
[PlyCount "125"]
[EventDate "2019.09.13"]
[EventType "tourn"]
[EventCountry "GER"]
[SourceTitle "playchess.com"]
[Source "ChessBase"]
[SourceQuality "1"]
[TimeControl "40/7200:1800"]

1. e4 {[%emt 0:00:03]} e5 {[%emt 0:00:14]} 2. Nf3 {[%emt 0:00:10]} Nc6 {[%emt 0:00:15]} 3. Bb5 {[%emt 0:00:09]} Nf6 {[%emt 0:00:21]} 4. O-O {[%emt 0:07:13]} Nxe4 {[%emt 0:00:26]} 5. Re1 {[%emt 0:05:43]} Nd6 {[%emt 0:00:23]} 6. Nxe5 {[%emt 0:00:06]} Be7 {[%emt 0:00:33]} 7. Bf1 {[%emt 0:00:35]} Nxe5 {[%emt 0:00:34]} 8. Rxe5 {[%emt 0:00:06]} O-O {[%emt 0:01:04]} 9. Nc3 {[%emt 0:07:15]} Bf6 {[%emt 0:14:44]} 10. Re1 {[%emt 0:00:20]} c6 {[%emt 0:00:51]} 11. d4 {[%emt 0:01:31]} Nf5 {[%emt 0:00:58]} 12. d5 {[%emt 0:12:45]} d6 {[%emt 0:00:10]} 13. Ne4 {[%emt 0:02:31]} Be7 {[%emt 0:01:17]} 14. Bf4 {[%emt 0:04:25]} c5 {[%emt 0:01:26]} 15. Qd2 {[%emt 0:04:47]} Nh4 {[%emt 0:02:17]} 16. b4 {[%emt 0:06:43]} b6 {[%emt 0:01:34]} 17. bxc5 {[%emt 0:01:28]} bxc5 {[%emt 0:00:05]} 18. Qe3 {[%emt 0:16:11]} Ng6 {[%emt 0:02:12]} 19. Rab1 {[%emt 0:01:23]} Nxf4 {[%emt 0:04:34]} 20. Qxf4 {[%emt 0:00:40]} f5 {[%emt 0:00:20]} 21. Ng3 {[%emt 0:02:53]} g6 {[%emt 0:05:50]} 22. Qf3 {[%emt 0:05:54]} Bf6 {[%emt 0:05:17]} 23. Ne2 {[%emt 0:04:17]} g5 {[%emt 0:03:03]} 24. Ng3 {[%emt 0:02:02]} Be5 {[%emt 0:03:49]} 25. Bd3 {[%emt 0:02:36]} Qf6 {[%emt 0:03:10]} 26. h3 {[%emt 0:04:03]} Kh8 {[%emt 0:03:39]} 27. Qh5 {[%emt 0:01:26]} Qg7 {[%emt 0:18:08]} 28. Kh1 {[%emt 0:04:17]} Qf6 {[%emt 0:06:58]} 29. Nf1 {[%emt 0:01:50]} h6 {[%emt 0:11:00]} 30. Ne3 {[%emt 0:02:36]} Bc3 {[%emt 0:00:20]} 31. Re2 {[%emt 0:00:34]} Bd7 {[%emt 0:00:29]} 32. Rb7 {[%emt 0:07:06]} Rad8 {[%emt 0:08:51]} 33. Nxf5 {[%emt 0:01:15]} c4 {[%emt 0:02:48]} 34. Be4 {[%emt 0:02:56]} Be8 {[%emt 0:01:14]} 35. Qxh6+ {[%emt 0:00:07]} Qxh6 {[%emt 0:00:19]} 36. Nxh6 {[%emt 0:00:01]} Rd7 {[%emt 0:00:02]} 37. Rb8 {[%emt 0:00:32]} Re7 {[%emt 0:00:10]} 38. Bf3 {[%emt 0:00:28]} Rxe2 {[%emt 0:03:10]} 39. Bxe2 {[%emt 0:00:02]} Kg7 {[%emt 0:00:04]} 40. Ng4 {[%emt 0:00:16]} Bh5 {[%emt 0:03:18]} 41. Rxf8 {[%emt 0:14:56]} Kxf8 {[%emt 0:00:03]} 42. g3 {[%emt 0:02:07]} Bxg4 {[%emt 0:05:28]} 43. Bxg4 {[%emt 0:00:36]} Bd2 {[%emt 0:00:06]} 44. Kg2 {[%emt 0:00:17]} Kg7 {[%emt 0:00:13]} 45. Be2 {[%emt 0:04:43]} c3 {[%emt 0:00:33]} 46. f4 {[%emt 0:01:26]} gxf4 {[%emt 0:09:17]} 47. g4 {[%emt 0:00:01]} Be1 {[%emt 0:00:29]} 48. Kf3 {[%emt 0:00:02]} Kf6 {[%emt 0:00:41]} 49. Kxf4 {[%emt 0:00:06]} Bd2+ {[%emt 0:00:13]} 50. Ke4 {[%emt 0:00:37]} Be1 {[%emt 0:00:10]} 51. Bf1 {[%emt 0:00:10]} Kg5 {[%emt 0:01:04]} 52. Kd4 {[%emt 0:00:09]} Bd2 {[%emt 0:00:37]} 53. Kc4 {[%emt 0:00:07]} Be1 {[%emt 0:00:31]} 54. Kb5 {[%emt 0:00:01]} Bf2 {[%emt 0:02:18]} 55. Kc6 {[%emt 0:00:02]} Bg3 {[%emt 0:00:17]} 56. Kd7 {[%emt 0:00:28]} Bf4 {[%emt 0:00:59]} 57. a4 {[%emt 0:00:02]} Kh4 {[%emt 0:00:28]} 58. Bd3 {[%emt 0:00:33]} Kg5 {[%emt 0:00:15]} 59. Ke6 {[%emt 0:00:05]} Kh4 {[%emt 0:00:24]} 60. Kf5 {[%emt 0:00:06]} Be3 {[%emt 0:00:39]} 61. Be2 {[%emt 0:00:08]} Bg5 {[%emt 0:00:21]} 62. Bf1 {[%emt 0:00:35]} Be3 {[%emt 0:00:06]} 63. Be2 {[%emt 0:00:19]} 1/2-1/2

[Event "Hans Wild Turnier 2019"]
[Site "Bremen"]
[Date "2019.09.15"]
[Round "5.2"]
[White "Bruedigam, Martin"]
[Black "Kunin, Vitaly"]
[Result "0-1"]
[ECO "B07"]
[WhiteElo "2396"]
[BlackElo "2546"]
[Annotator "ChessBase"]
[PlyCount "84"]
[EventDate "2019.09.13"]
[EventType "tourn"]
[EventCountry "GER"]
[SourceTitle "playchess.com"]
[Source "ChessBase"]
[SourceQuality "1"]
[TimeControl "40/7200:1800"]

1. e4 {[%emt 0:00:03]} d6 {[%emt 0:00:39]} 2. d4 {[%emt 0:00:06]} Nf6 {[%emt 0:00:09]} 3. Nc3 {[%emt 0:00:06]} e5 {[%emt 0:00:10]} 4. Nge2 {[%emt 0:02:52]} Nbd7 {[%emt 0:02:33]} 5. g3 {[%emt 0:00:08]} c6 {[%emt 0:00:28]} 6. a4 {[%emt 0:02:04]} Be7 {[%emt 0:04:10]} 7. Bg2 {[%emt 0:00:08]} Qc7 {[%emt 0:00:10]} 8. O-O {[%emt 0:00:12]} O-O {[%emt 0:00:09]} 9. h3 {[%emt 0:00:17]} h5 {[%emt 0:00:20]} 10. f4 {[%emt 0:08:14]} Re8 {[%emt 0:01:22]} 11. Kh2 {[%emt 0:02:36]} Rb8 {[%emt 0:05:41]} 12. Be3 {[%emt 0:03:00]} b6 {[%emt 0:01:21]} 13. Re1 {[%emt 0:07:50]} a6 {[%emt 0:01:58]} 14. d5 {[%emt 0:08:36]} cxd5 {[%emt 0:07:15]} 15. Nxd5 {[%emt 0:05:32]} Nxd5 {[%emt 0:00:13]} 16. exd5 {[%emt 0:00:04]} Nf6 {[%emt 0:05:00]} 17. Qd3 {[%emt 0:13:16]} b5 {[%emt 0:10:16]} 18. axb5 {[%emt 0:02:39]} Rxb5 {[%emt 0:01:59]} 19. c4 {[%emt 0:25:16]} Rxb2 {[%emt 0:01:34]} 20. fxe5 {[%emt 0:00:56]} dxe5 {[%emt 0:05:29]} 21. Qc3 {[%emt 0:00:06]} Qb8 {[%emt 0:01:44]} 22. c5 {[%emt 0:00:34]} Bxh3 {[%emt 0:05:11]} 23. Bxh3 {[%emt 0:01:28]} Nxd5 {[%emt 0:00:10]} 24. Qc1 {[%emt 0:13:09]} h4 {[%emt 0:05:03]} 25. Bg2 {[%emt 0:08:57]} hxg3+ {[%emt 0:02:17]} 26. Kh1 {[%emt 0:01:12]} Qb3 {[%emt 0:06:32]} 27. Ng1 {[%emt 0:05:45]} Rc8 {[%emt 0:17:28]} 28. Rxa6 {[%emt 0:00:35]} Rxg2 {[%emt 0:02:06]} 29. Kxg2 {[%emt 0:00:47]} Qb7 {[%emt 0:00:10]} 30. Nf3 {[%emt 0:00:49]} Qxa6 {[%emt 0:00:13]} 31. Nxe5 {[%emt 0:00:30]} Qa4 {[%emt 0:05:37]} 32. Nf3 {[%emt 0:01:08]} Nxe3+ {[%emt 0:01:45]} 33. Rxe3 {[%emt 0:00:21]} Rxc5 {[%emt 0:00:55]} 34. Qe1 {[%emt 0:00:04]} Rc2+ {[%emt 0:00:48]} 35. Re2 {[%emt 0:00:13]} Bd6 {[%emt 0:02:39]} 36. Qd1 {[%emt 0:00:04]} Rxe2+ {[%emt 0:00:13]} 37. Qxe2 {[%emt 0:00:02]} Qc6 {[%emt 0:01:04]} 38. Qa2 {[%emt 0:00:11]} g6 {[%emt 0:01:37]} 39. Qe2 {[%emt 0:00:01]} Qd5 {[%emt 0:02:39]} 40. Qe8+ {[%emt 0:00:06]} Kg7 {[%emt 0:00:09]} 41. Qe2 {[%emt 0:00:13]} g5 {[%emt 0:01:39]} 42. Kh3 {[%emt 0:01:52]} Kg6 {[%emt 0:04:42]} 0-1

[Event "Hans Wild Turnier 2019"]
[Site "Bremen"]
[Date "2019.09.15"]
[Round "5.3"]
[White "Breutigam, Martin"]
[Black "Grigorian, Spartak"]
[Result "1/2-1/2"]
[ECO "D03"]
[WhiteElo "2383"]
[BlackElo "2373"]
[Annotator "NA"]
[PlyCount "124"]
[EventDate "2019.09.13"]
[EventType "tourn"]
[EventCountry "GER"]
[SourceTitle "playchess.com"]
[Source "ChessBase"]
[SourceQuality "1"]
[TimeControl "40/7200:1800"]

1. d4 {[%emt 0:02:56]} d5 {[%emt 0:00:15]} 2. Nf3 {[%emt 0:00:06]} Nf6 {[%emt 0:00:06]} 3. Bg5 {[%emt 0:00:17]} Ne4 {[%emt 0:00:56]} 4. Bh4 {[%emt 0:00:16]} Qd6 {[%emt 0:01:47]} 5. Nbd2 {[%emt 0:00:39]} Qh6 {[%emt 0:00:05]} 6. Qc1 {[%emt 0:00:26]} Nc6 {[%emt 0:01:14]} 7. c3 {[%emt 0:01:19]} Qh5 {[%emt 0:01:08]} 8. h3 {[%emt 0:03:37]} f6 {[%emt 0:01:21]} 9. g4 {[%emt 0:05:55]} Qf7 {[%emt 0:04:10]} 10. Nxe4 {[%emt 0:05:53]} dxe4 {[%emt 0:00:06]} 11. Nd2 {[%emt 0:00:11]} h5 {[%emt 0:04:21]} 12. Bg2 {[%emt 0:13:33]} hxg4 {[%emt 0:02:44]} 13. hxg4 {[%emt 0:01:20]} Bxg4 {[%emt 0:03:55]} 14. Nxe4 {[%emt 0:03:21]} O-O-O {[%emt 0:17:12]} 15. Qe3 {[%emt 0:18:13]} Kb8 {[%emt 0:02:13]} 16. Bg3 {[%emt 0:02:41]} Rxh1+ {[%emt 0:01:08]} 17. Bxh1 {[%emt 0:00:01]} e5 {[%emt 0:01:16]} 18. dxe5 {[%emt 0:01:43]} Nxe5 {[%emt 0:05:21]} 19. Bxe5 {[%emt 0:12:19]} fxe5 {[%emt 0:00:21]} 20. Qg5 {[%emt 0:05:36]} Qd7 {[%emt 0:00:13]} 21. Qxe5 {[%emt 0:00:35]} a6 {[%emt 0:06:15]} 22. Kf1 {[%emt 0:03:30]} Ka8 {[%emt 0:14:46]} 23. a3 {[%emt 0:03:28]} c6 {[%emt 0:03:48]} 24. Re1 {[%emt 0:06:57]} Bxe2+ {[%emt 0:03:34]} 25. Kg1 {[%emt 0:03:12]} Bc4 {[%emt 0:01:34]} 26. Bf3 {[%emt 0:02:54]} Re8 {[%emt 0:06:13]} 27. Qf4 {[%emt 0:03:43]} Qe6 {[%emt 0:07:05]} 28. Re3 {[%emt 0:01:33]} Qg6+ {[%emt 0:00:40]} 29. Qg4 {[%emt 0:01:55]} Qxg4+ {[%emt 0:04:19]} 30. Bxg4 {[%emt 0:00:05]} Kb8 {[%emt 0:00:49]} 31. Kg2 {[%emt 0:04:02]} Bd5 {[%emt 0:02:02]} 32. f3 {[%emt 0:00:48]} Bd6 {[%emt 0:01:48]} 33. Re2 {[%emt 0:03:29]} Bf4 {[%emt 0:00:17]} 34. Bf5 {[%emt 0:00:55]} Re5 {[%emt 0:02:34]} 35. Bg4 {[%emt 0:00:07]} a5 {[%emt 0:00:18]} 36. Re1 {[%emt 0:00:20]} a4 {[%emt 0:00:25]} 37. Re2 {[%emt 0:01:01]} Bc4 {[%emt 0:00:28]} 38. Re1 {[%emt 0:00:08]} Rb5 {[%emt 0:00:21]} 39. Nf2 {[%emt 0:00:26]} g5 {[%emt 0:04:34]} 40. Re4 {[%emt 0:00:11]} Rxb2 {[%emt 0:04:40]} 41. Rxc4 {[%emt 0:00:35]} Be3 {[%emt 0:00:29]} 42. Rxa4 {[%emt 0:01:10]} Rxf2+ {[%emt 0:00:11]} 43. Kh1 {[%emt 0:07:01]} Rc2 {[%emt 0:02:35]} 44. Rc4 {[%emt 0:00:22]} Kc7 {[%emt 0:01:36]} 45. a4 {[%emt 0:00:19]} Kd6 {[%emt 0:07:54]} 46. Bh5 {[%emt 0:02:19]} Bd2 {[%emt 0:04:58]} 47. Bg6 {[%emt 0:01:42]} Rc1+ {[%emt 0:01:51]} 48. Kg2 {[%emt 0:00:22]} Bxc3 {[%emt 0:00:15]} 49. Be4 {[%emt 0:00:52]} Ke7 {[%emt 0:02:58]} 50. Rc5 {[%emt 0:02:24]} Bd2 {[%emt 0:01:06]} 51. Rxc1 {[%emt 0:00:10]} Bxc1 {[%emt 0:00:02]} 52. Kf1 {[%emt 0:00:13]} Kd6 {[%emt 0:00:10]} 53. Ke2 {[%emt 0:00:18]} Ke5 {[%emt 0:00:27]} 54. Kd3 {[%emt 0:02:46]} Ba3 {[%emt 0:01:12]} 55. Bg6 {[%emt 0:01:59]} Bb4 {[%emt 0:00:46]} 56. Kc4 {[%emt 0:00:22]} Be1 {[%emt 0:00:23]} 57. Bh5 {[%emt 0:00:14]} Kf4 {[%emt 0:01:30]} 58. Bg4 {[%emt 0:00:15]} b6 {[%emt 0:00:12]} 59. Bh5 {[%emt 0:00:06]} Ke3 {[%emt 0:00:07]} 60. Bg4 {[%emt 0:00:14]} Ba5 {[%emt 0:00:08]} 61. Bh5 {[%emt 0:00:11]} Kf4 {[%emt 0:00:25]} 62. Bg4 {[%emt 0:00:08]} Ke5 {[%emt 0:04:23]} 1/2-1/2